bitfinex-derivatives/quotes_BNBF0:USTF0_20250329
["timestamp","ask_amount","ask_price","bid_price","bid_amount"]
[1743210867364,0.27992391,622.14,621.45,0.808]
[1743210867564,1.22237982,622.13,621.46,0.29091344]
[1743210867766,1.22237982,622.12,621.46,0.29091344]
[1743210867961,1.22237982,622.11,621.46,0.29091344]
[1743210868167,2.16052684,622.1,621.46,0.29091344]
[1743210868368,1.22237982,622.09,621.46,0.29091344]
[1743210868562,1.22237982,622.08,621.46,0.29091344]
[1743210868765,1.22237982,622.07,621.46,0.29091344]
[1743210868967,1.22243833,622.06,621.46,0.29091344]
[1743210869167,1.22243833,622.05,621.46,0.29091344]
[1743210869376,1.22243833,622.04,621.46,0.29091344]
[1743210869568,1.22243833,622.03,621.46,0.29091344]
[1743210869773,1.22243833,622.02,621.46,0.29091344]
[1743210870068,1.22243833,622.01,621.46,0.29091344]
[1743210870269,1.22243833,622.0,621.45,0.808]
[1743210870567,1.22243833,621.99,621.45,0.808]
[1743210870762,1.22243833,621.98,621.45,0.808]
[1743210870962,1.22243833,621.97,621.45,0.808]
[1743210871269,1.22243833,621.96,621.45,0.808]
[1743210871468,1.22243833,621.95,621.45,0.808]
[1743210871661,1.22243833,621.94,621.45,0.808]
[1743210871866,1.22243833,621.93,621.45,0.808]
[1743210872062,1.22243833,621.92,621.45,0.808]
[1743210872265,1.22243833,621.91,621.45,0.808]
[1743210872566,1.22243833,621.9,621.45,0.808]
[1743210872771,1.22266623,621.89,621.45,0.808]
[1743210872970,0.93814702,621.91,621.45,0.808]
[1743210873173,0.93814702,621.88,621.45,0.808]
[1743210873371,0.93814702,621.88,621.43,1.215]
[1743210873571,0.93814702,621.87,621.44,0.2909293]
[1743210874066,0.93814702,621.86,621.43,1.215]
[1743210874271,0.93814702,621.86,621.43,2.164]
[1743210874474,0.93814702,621.85,621.43,2.164]
[1743210874972,0.93814702,621.84,621.43,2.164]
[1743210875471,0.93814702,621.83,621.43,2.164]
[1743210876172,0.93814702,621.82,621.43,2.164]
[1743210876673,0.93814702,621.81,621.43,2.164]
[1743210877380,0.93814702,621.8,621.43,2.164]
[1743210877677,0.27997232,622.01,621.43,0.949]
[1743210877880,1.22317218,622.0,621.43,0.949]
[1743210878180,1.22317218,621.99,621.43,0.949]
[1743210878479,1.22317218,621.98,621.44,0.29093246]
[1743210878680,1.22326938,621.97,621.43,0.949]
[1743210878873,2.16215223,621.96,621.43,0.949]
[1743210879079,1.22326938,621.95,621.43,0.949]
[1743210879278,1.22326938,621.94,621.43,0.949]
[1743210879474,1.22326938,621.93,621.44,0.29094306]
[1743210879675,1.22326938,621.92,621.44,0.29094306]
[1743210879880,1.22326938,621.91,621.44,0.29094306]
[1743210880073,2.16215223,621.9,621.44,0.29094306]
[1743210880381,1.22326938,621.89,621.45,0.948]
[1743210880679,1.22326938,621.88,621.46,0.29094306]
[1743210880880,1.22326938,621.87,621.46,0.29094306]
[1743210881074,1.22326938,621.86,621.46,0.29094306]
[1743210881277,1.22326938,621.85,621.46,0.29094306]
[1743210881479,0.93888285,621.88,621.45,0.948]
[1743210881681,1.22359391,621.87,621.46,0.29094304]
[1743210881874,0.93888285,621.84,621.46,0.29094304]
[1743210882278,0.93888285,621.83,621.46,0.29094304]
[1743210883080,0.93888285,621.82,621.46,0.29094304]
[1743210883581,0.93888285,621.81,621.46,0.29094304]
[1743210884283,0.27995543,622.07,621.46,0.29094304]
[1743210884479,1.22371733,622.06,621.46,0.29094304]
[1743210884680,1.22371733,622.05,621.46,0.29094304]
[1743210884875,1.22371733,622.04,621.45,0.948]
[1743210885080,1.22371733,622.03,621.46,0.29094472]
[1743210885381,1.22371733,622.02,621.46,0.29094472]
[1743210885581,1.22371733,622.01,621.47,0.892]
[1743210885782,1.22371733,622.0,621.48,0.29094472]
[1743210885977,1.22371733,621.99,621.48,0.29094472]
[1743210886183,1.22371733,621.98,621.48,0.29094472]
[1743210886382,1.22371733,621.97,621.48,0.29094472]
[1743210886578,1.22371733,621.96,621.48,0.29094472]
[1743210886781,1.22371733,621.95,621.48,0.29094472]
[1743210886977,1.22371733,621.94,621.47,0.892]
[1743210887180,1.22371733,621.93,621.47,0.892]
[1743210887380,1.22371733,621.92,621.47,0.892]
[1743210887582,1.22371733,621.91,621.48,0.29094496]
[1743210887879,1.22371733,621.9,621.48,0.29094496]
[1743210888185,1.22371733,621.89,621.47,0.892]
[1743210888377,1.22371733,621.88,621.47,0.892]
[1743210888579,1.22369781,621.87,621.47,0.892]
[1743210888779,2.16290443,621.86,621.47,0.892]
[1743210888979,1.22369781,621.85,621.47,0.892]
[1743210889183,1.22369781,621.84,621.47,0.892]
[1743210889485,1.22369781,621.83,621.47,0.892]
[1743210889684,1.22369781,621.82,621.47,0.892]
[1743210889883,1.22369781,621.81,621.47,0.892]
[1743210890078,1.22369781,621.8,621.47,0.892]
[1743210890383,0.93920662,621.83,621.47,0.892]
[1743210890680,0.93920662,621.79,621.47,0.892]
[1743210891084,0.27995431,622.07,621.47,0.892]
[1743210891285,1.22352618,622.06,621.47,0.892]
[1743210891485,1.22352618,622.05,621.47,0.892]
[1743210891687,1.22352618,622.04,621.47,0.892]
[1743210891986,1.22352618,622.03,621.47,0.892]
[1743210892287,2.16259845,622.02,621.47,0.892]
[1743210892486,1.22352618,622.01,621.47,0.892]
[1743210892685,1.22352618,622.0,621.47,0.892]
[1743210892887,1.22352618,621.99,621.47,0.892]
[1743210893082,1.22352618,621.98,621.47,0.892]
[1743210893284,1.22352618,621.97,621.47,0.892]
[1743210893484,1.22352618,621.96,621.47,0.892]
[1743210893682,1.22352618,621.95,621.47,0.892]
[1743210893987,1.22352618,621.94,621.47,0.892]
[1743210894186,1.22352618,621.93,621.47,0.892]
[1743210894381,1.22352618,621.92,621.47,0.892]
[1743210894586,1.22352618,621.91,621.47,0.892]
[1743210894785,1.22352618,621.9,621.47,0.892]
[1743210894985,2.16259845,621.89,621.47,0.892]
[1743210895188,1.22352618,621.88,621.47,0.892]
[1743210895389,1.22352618,621.87,621.47,0.892]
[1743210895587,0.93907227,621.89,621.47,0.892]
[1743210895788,1.22350368,621.88,621.47,0.892]
[1743210896087,1.22350368,621.87,621.47,0.892]
[1743210896289,0.93907227,621.88,621.47,0.892]
[1743210896491,1.22350659,621.87,621.47,0.892]
[1743210896685,0.93907227,621.87,621.47,0.892]
[1743210897789,0.93907227,621.86,621.47,0.892]
[1743210898186,0.93907227,621.85,621.47,0.892]
[1743210898784,1.22348076,621.84,621.47,0.892]
[1743210898985,1.22348076,621.83,621.47,0.892]
[1743210899190,0.93907227,621.82,621.47,0.892]
[1743210899689,0.93907227,621.81,621.47,0.892]
[1743210900389,0.93907227,621.8,621.47,0.892]
[1743210900986,0.27997683,621.98,621.47,0.892]
[1743210901193,1.22349007,621.97,621.47,0.892]
[1743210901387,1.22349007,621.96,621.48,1.929]
[1743210901584,1.22349007,621.95,621.48,1.929]
[1743210901788,1.22349007,621.94,621.48,1.929]
[1743210902088,1.22349007,621.93,621.48,1.929]
[1743210902291,1.22349007,621.92,621.48,1.929]
[1743210902486,1.22349007,621.91,621.49,0.29094906]
[1743210902687,1.22349007,621.9,621.49,0.29094906]
[1743210902892,1.22349007,621.89,621.48,1.929]
[1743210903086,1.22349007,621.88,621.48,1.929]
[1743210903291,1.22349007,621.87,621.48,1.929]
[1743210903491,1.22349007,621.86,621.48,1.929]
[1743210903693,1.22349007,621.85,621.48,1.929]
[1743210903991,1.22349007,621.84,621.48,1.929]
[1743210904188,0.93902327,621.86,621.48,1.929]
[1743210904391,0.93902327,621.83,621.48,1.929]
[1743210904586,0.93902327,621.82,621.48,1.929]
[1743210904989,0.93902327,621.81,621.48,1.929]
[1743210905590,0.93902327,621.8,621.48,1.929]
[1743210905992,0.93902327,621.79,621.48,1.929]
[1743210906489,0.32135225,622.37,621.48,1.929]
[1743210906685,1.22361773,622.36,621.48,1.929]
[1743210906888,1.22361773,622.35,621.48,1.929]
[1743210907188,1.22361773,622.34,621.48,1.929]
[1743210907392,1.22361773,622.33,621.48,1.929]
[1743210907594,1.22350885,622.32,621.48,1.929]
[1743210907794,1.22350885,622.31,621.48,1.929]
[1743210907995,1.22350885,622.3,621.48,1.929]
[1743210908294,1.22350885,622.29,621.48,1.929]
[1743210908493,1.22350885,622.28,621.48,1.929]
[1743210908795,1.22350885,622.27,621.48,1.929]
[1743210908988,0.32135225,622.37,621.48,1.929]
[1743210908989,2.16264273,622.26,621.48,1.929]
[1743210909191,1.22350885,622.25,621.48,1.929]
[1743210909392,2.16264273,622.24,621.48,1.929]
[1743210909593,1.22356191,622.23,621.48,1.929]
[1743210909895,1.22356191,622.22,621.48,1.929]
[1743210910095,1.22356191,622.21,621.48,1.929]
[1743210910290,2.16269579,622.2,621.48,1.929]
[1743210910493,1.22356191,622.19,621.48,1.929]
[1743210910689,1.22356191,622.18,621.48,1.929]
[1743210910891,1.22356191,622.17,621.49,1.122]
[1743210911090,1.22356191,622.16,621.49,1.122]
[1743210911390,2.16269579,622.15,621.49,1.122]
[1743210911594,2.16269579,622.14,621.49,1.122]
[1743210911791,1.22356191,622.13,621.49,1.122]
[1743210911995,1.22356191,622.12,621.49,1.122]
[1743210912194,1.22356191,622.11,621.49,1.122]
[1743210912388,1.22356191,622.1,621.49,1.122]
[1743210912590,1.22356191,622.09,621.49,1.122]
[1743210912790,1.22356191,622.08,621.49,1.122]
[1743210912993,1.22356191,622.07,621.49,1.122]
[1743210913194,0.93913388,622.09,621.49,1.122]
[1743210913195,1.22356191,622.06,621.49,1.122]
[1743210913396,1.22356191,622.05,621.49,1.122]
[1743210913591,1.22356191,622.04,621.49,1.122]
[1743210913797,2.16269579,622.03,621.49,1.122]
[1743210913997,1.22356191,622.02,621.49,1.122]
[1743210914297,1.22356191,622.01,621.49,1.122]
[1743210914496,1.22356191,622.0,621.49,1.122]
[1743210914796,2.16269579,621.99,621.49,1.122]
[1743210914997,1.22356191,621.98,621.49,1.122]
[1743210915297,1.22356191,621.97,621.49,1.122]
[1743210915597,1.22363668,621.96,621.49,1.122]
[1743210915798,1.22363668,621.95,621.49,1.122]
[1743210916000,1.22363668,621.94,621.49,1.122]
[1743210916295,0.93913388,621.93,621.49,1.122]
[1743210916500,1.22365006,621.92,621.49,1.122]
[1743210916694,1.22365006,621.91,621.49,1.122]
[1743210916894,2.16278394,621.9,621.49,1.122]
[1743210917198,1.22365006,621.89,621.49,1.122]
[1743210917396,1.22365006,621.88,621.49,1.122]
[1743210917593,2.16278394,621.87,621.49,1.122]
[1743210917794,1.22365006,621.86,621.49,1.122]
[1743210917993,1.22365006,621.85,621.49,1.122]
[1743210918202,2.16278394,621.84,621.49,1.122]
[1743210918393,1.22365006,621.83,621.49,1.122]
[1743210918594,2.16278394,621.82,621.49,1.122]
[1743210918795,0.93913388,621.81,621.49,1.122]
[1743210919101,0.93913388,621.8,621.49,1.122]
[1743210919601,0.93913388,621.79,621.49,1.122]
[1743210920099,0.93913388,621.78,621.49,1.122]
[1743210920296,0.27996332,621.99,621.49,1.122]
[1743210920501,1.22375724,621.98,621.49,1.122]
[1743210920701,1.22375724,621.97,621.49,1.122]
[1743210920902,2.16300474,621.96,621.49,1.122]
[1743210921098,1.22375724,621.95,621.49,1.122]
[1743210921299,1.22375724,621.94,621.49,1.122]
[1743210921497,1.22375724,621.93,621.49,1.122]
[1743210921702,1.22375724,621.92,621.49,1.122]
[1743210921997,1.22375724,621.91,621.49,1.122]
[1743210922200,2.16300474,621.9,621.49,1.122]
[1743210922504,1.22375724,621.89,621.49,1.122]
[1743210922703,1.22375724,621.88,621.49,1.122]
[1743210922897,1.22375724,621.87,621.49,1.122]
[1743210923103,1.22375724,621.86,621.49,1.122]
[1743210923403,1.22375724,621.85,621.49,1.122]
[1743210923605,1.22375724,621.84,621.49,1.122]
[1743210923799,1.22375724,621.83,621.49,1.122]
[1743210923999,2.16300474,621.82,621.49,1.122]
[1743210924203,1.22375724,621.81,621.49,1.122]
[1743210924400,0.9392475,621.82,621.49,1.122]
[1743210924601,0.9392475,621.8,621.49,1.122]
[1743210925104,1.22390048,621.79,621.49,1.122]
[1743210925305,1.22390048,621.78,621.49,1.122]
[1743210925505,1.22390048,621.77,621.49,1.122]
[1743210925707,1.22390048,621.76,621.49,1.122]
[1743210926005,1.22390048,621.75,621.49,1.122]
[1743210926206,1.22390048,621.74,621.49,1.122]
[1743210926402,1.22390048,621.73,621.49,1.122]
[1743210926707,1.22390048,621.72,621.49,1.122]
[1743210926900,1.22390048,621.71,621.49,1.122]
[1743210927099,1.22363774,621.7,621.49,1.122]
[1743210927304,0.9392475,621.73,621.49,1.122]
[1743210927504,1.22338704,621.72,621.49,1.122]
[1743210927705,1.22338704,621.71,621.49,1.122]
[1743210927901,0.9392475,621.72,621.49,1.122]
[1743210928100,2.16263454,621.71,621.49,1.122]
[1743210928307,0.9392475,621.71,621.49,1.122]
[1743210928500,0.9392475,621.7,621.49,1.122]
[1743210929405,0.28001287,621.85,621.49,1.122]
[1743210929607,1.22325591,621.84,621.49,1.122]
[1743210929808,1.22325591,621.83,621.49,1.122]
[1743210930110,2.16218459,621.82,621.49,1.122]
[1743210930302,1.22325591,621.81,621.49,1.122]
[1743210930500,1.22325591,621.8,621.49,1.122]
[1743210930705,1.22325591,621.79,621.49,1.122]
[1743210931008,1.22325591,621.78,621.49,1.122]
[1743210931205,1.22325591,621.77,621.49,1.122]
[1743210931406,1.22325591,621.76,621.49,1.122]
[1743210931708,1.22325591,621.75,621.49,1.122]
[1743210931905,0.93892868,621.77,621.49,1.122]
[1743210932102,1.22328817,621.76,621.49,1.122]
[1743210932405,0.93892868,621.76,621.49,1.122]
[1743210932603,0.93892868,621.75,621.49,1.122]
[1743210933104,0.93892868,621.75,621.43,1.344]
[1743210933302,0.93892868,621.74,621.43,1.344]
[1743210933906,0.93892868,621.73,621.43,1.344]
[1743210934107,0.93892868,621.72,621.43,1.344]
[1743210934503,0.28000048,621.89,621.43,1.344]
[1743210934703,1.22322604,621.88,621.43,1.344]
[1743210934902,1.22322604,621.87,621.43,1.344]
[1743210935107,1.22322604,621.86,621.43,1.344]
[1743210935303,1.22322604,621.85,621.43,1.344]
[1743210935509,1.22322604,621.84,621.43,1.344]
[1743210935810,1.22322604,621.83,621.43,1.344]
[1743210936011,1.22322604,621.82,621.43,1.344]
[1743210936207,1.22322604,621.81,621.43,1.344]
[1743210936404,1.22322604,621.8,621.43,1.344]
[1743210936711,1.22322604,621.79,621.43,1.344]
[1743210937010,1.22322604,621.78,621.43,1.344]
[1743210937211,1.22322604,621.77,621.43,1.344]
[1743210937405,0.93886043,621.77,621.43,1.344]
[1743210937905,1.22303942,621.76,621.43,1.344]
[1743210938108,0.93886043,621.77,621.43,1.344]
[1743210938313,2.16190502,621.76,621.43,1.344]
[1743210938506,0.93886043,621.76,621.43,1.344]
[1743210939611,0.93886043,621.75,621.43,1.344]
[1743210940310,0.93886043,621.74,621.43,1.344]
[1743210941307,0.93886043,621.73,621.43,1.344]
[1743210941713,0.32135225,622.37,621.43,1.344]
[1743210941910,1.22299345,622.36,621.43,1.344]
[1743210942111,0.28000949,621.89,621.43,1.344]
[1743210942414,1.22299345,621.88,621.43,1.344]
[1743210942711,1.22299345,621.87,621.43,1.344]
[1743210943014,2.16167605,621.86,621.43,1.344]
[1743210943219,1.22299345,621.85,621.43,1.344]
[1743210943417,1.22299345,621.84,621.43,1.344]
[1743210943715,1.22299345,621.83,621.43,1.344]
[1743210943913,2.16167605,621.82,621.43,1.344]
[1743210944110,1.22299345,621.81,621.43,1.344]
[1743210944315,1.22299345,621.8,621.43,1.344]
[1743210944509,1.22299345,621.79,621.43,1.344]
[1743210944720,1.22299345,621.78,621.43,1.344]
[1743210944910,1.22299345,621.77,621.43,1.344]
[1743210945114,1.22299345,621.76,621.43,1.344]
[1743210945312,0.9386826,621.79,621.43,1.344]
[1743210945512,0.9386826,621.75,621.43,1.344]
[1743210945819,0.9386826,621.74,621.43,1.344]
[1743210946518,0.9386826,621.73,621.43,1.344]
[1743210947116,0.9386826,621.72,621.43,1.344]
[1743210947717,0.9386826,621.71,621.43,1.344]
[1743210948322,0.28002414,621.83,621.42,1.209]
[1743210948619,1.22265619,621.82,621.42,1.209]
[1743210948816,1.22265296,621.81,621.42,1.209]
[1743210949018,1.22265296,621.8,621.42,1.209]
[1743210949214,1.22265296,621.79,621.42,1.209]
[1743210949416,1.22265296,621.78,621.42,1.209]
[1743210949616,1.22265296,621.77,621.42,1.209]
[1743210949817,1.22265296,621.76,621.42,1.209]
[1743210950018,1.22265296,621.75,621.42,1.209]
[1743210950217,0.93843503,621.75,621.42,1.209]
[1743210950817,0.93843503,621.74,621.42,1.209]
[1743210951819,0.93843503,621.73,621.42,1.209]
[1743210952520,0.93843503,621.72,621.42,1.209]
[1743210953121,0.93843503,621.71,621.42,1.209]
[1743210953723,0.93843503,621.7,621.42,1.209]
[1743210954222,0.28001287,621.89,621.42,1.209]
[1743210954520,1.22253929,621.88,621.42,1.209]
[1743210954721,1.22253929,621.87,621.42,1.209]
[1743210954922,1.22253929,621.86,621.42,1.209]
[1743210955117,2.16089776,621.85,621.42,1.209]
[1743210955315,1.22253929,621.84,621.42,1.209]
[1743210955621,2.16089776,621.83,621.42,1.209]
[1743210955815,1.22253929,621.82,621.42,1.209]
[1743210956019,1.22253929,621.81,621.42,1.209]
[1743210956320,1.22253929,621.8,621.42,1.209]
[1743210956519,1.22253929,621.79,621.42,1.209]
[1743210956822,2.16089776,621.78,621.42,1.209]
[1743210957024,1.22253929,621.77,621.42,1.209]
[1743210957220,1.22253929,621.76,621.42,1.209]
[1743210957522,1.22253929,621.75,621.42,1.209]
[1743210957723,1.22253929,621.74,621.38,1.107]
[1743210957921,0.93835847,621.74,621.39,0.29100288]
[1743210958223,1.22254075,621.73,621.38,1.107]
[1743210958521,0.93835847,621.73,621.38,1.107]
[1743210959324,0.93835847,621.72,621.38,1.107]
[1743210959726,0.93835847,621.71,621.38,1.107]
[1743210960318,0.93835847,621.7,621.38,1.107]
[1743210960816,0.28000386,621.86,621.38,1.107]
[1743210961017,1.2225782,621.85,621.38,1.107]
[1743210961221,1.2225782,621.84,621.38,1.107]
[1743210961416,1.2225782,621.83,621.38,1.107]
[1743210961622,0.28000386,621.86,621.38,1.107]
[1743210961623,1.2225782,621.82,621.38,1.107]
[1743210961918,1.2225782,621.81,621.39,0.757]
[1743210962126,1.2225782,621.8,621.39,0.757]
[1743210962423,1.2225782,621.79,621.39,0.757]
[1743210962625,1.2225782,621.78,621.39,0.757]
[1743210962818,1.2225782,621.77,621.39,0.757]
[1743210963024,1.2225782,621.76,621.39,0.757]
[1743210963220,2.16097167,621.75,621.39,0.757]
[1743210963424,1.2225782,621.74,621.39,0.757]
[1743210963724,1.2225782,621.73,621.39,0.757]
[1743210963926,2.16119789,621.72,621.39,0.757]
[1743210964117,1.22280442,621.71,621.39,0.757]
[1743210964322,1.22280442,621.7,621.39,0.757]
[1743210964521,2.16119789,621.69,621.39,0.757]
[1743210964727,1.22280442,621.68,621.39,0.757]
[1743210964924,1.22280442,621.67,621.39,0.757]
[1743210965129,1.22280442,621.66,621.39,0.757]
[1743210965324,1.22280442,621.65,621.39,0.757]
[1743210965524,1.22280442,621.64,621.39,0.757]
[1743210965730,0.93839347,621.64,621.39,0.757]
[1743210966234,0.32135225,622.37,621.39,0.757]
[1743210966235,0.93839347,621.63,621.39,0.757]
[1743210967133,0.93839347,621.62,621.39,0.757]
[1743210967630,0.28003653,621.81,621.39,0.757]
[1743210967834,1.22271527,621.8,621.39,0.757]
[1743210968034,1.22271527,621.79,621.39,0.757]
[1743210968227,2.16116086,621.78,621.39,0.757]
[1743210968430,1.22271527,621.77,621.39,0.757]
[1743210968629,1.22271527,621.76,621.39,0.757]
[1743210968831,1.22271527,621.75,621.39,0.757]
[1743210969033,1.22271527,621.74,621.39,0.757]
[1743210969232,1.22271527,621.73,621.39,0.757]
[1743210969428,1.22271527,621.72,621.39,0.757]
[1743210969636,1.22271527,621.71,621.39,0.757]
[1743210969835,1.22271527,621.7,621.39,0.757]
[1743210970035,0.93844559,621.7,621.39,0.757]
[1743210970736,0.93844559,621.69,621.39,0.757]
[1743210971131,0.93844559,621.68,621.39,0.757]
[1743210972034,0.93844559,621.67,621.39,0.757]
[1743210972835,0.28002639,621.81,621.38,1.107]
[1743210973036,1.22246476,621.8,621.38,1.107]
[1743210973231,1.22246476,621.79,621.38,1.107]
[1743210973436,0.28002639,621.81,621.38,1.107]
[1743210973437,1.22246476,621.78,621.38,1.107]
[1743210973636,1.22246476,621.77,621.38,1.107]
[1743210973838,1.22246476,621.76,621.38,1.107]
[1743210974037,1.22246476,621.75,621.38,1.107]
[1743210974238,2.16076551,621.74,621.38,1.107]
[1743210974435,1.22246476,621.73,621.38,1.107]
[1743210974740,2.16076551,621.72,621.38,1.107]
[1743210974939,1.22246476,621.71,621.38,1.107]
[1743210975133,1.22246476,621.7,621.38,1.107]
[1743210975334,1.22246476,621.69,621.38,1.107]
[1743210975538,2.16076551,621.68,621.38,1.107]
[1743210975739,1.22246476,621.67,621.38,1.107]
[1743210975940,0.93830075,621.68,621.38,1.107]
[1743210976140,1.22238377,621.67,621.38,1.107]
[1743210976339,2.16068452,621.66,621.38,1.107]
[1743210976538,1.22235374,621.65,621.38,1.107]
[1743210976735,0.93830075,621.66,621.38,1.107]
[1743210976937,1.22232592,621.65,621.38,1.107]
[1743210977133,0.93830075,621.66,621.38,1.107]
[1743210977336,1.22232723,621.65,621.38,1.107]
[1743210977539,0.93830075,621.65,621.38,1.107]
[1743210978137,0.93830075,621.64,621.38,1.107]
[1743210978842,0.93830075,621.63,621.38,1.107]
[1743210979145,0.93830075,621.62,621.38,1.107]
[1743210979542,0.28005005,621.75,621.38,1.107]
[1743210979846,1.22234855,621.74,621.38,1.107]
[1743210980047,2.16057303,621.73,621.32,0.759]
[1743210980344,1.22234855,621.72,621.32,0.759]
[1743210980548,1.22234855,621.71,621.32,0.759]
[1743210980744,1.22234855,621.7,621.32,0.759]
[1743210980945,1.22234855,621.69,621.32,0.759]
[1743210981145,0.93822448,621.72,621.32,0.759]
[1743210981441,2.16075753,621.71,621.32,0.759]
[1743210981747,1.22253305,621.7,621.32,0.759]
[1743210982047,2.16075753,621.69,621.32,0.759]
[1743210982248,1.22253305,621.68,621.32,0.759]
[1743210982546,0.93822448,621.67,621.32,0.759]
[1743210983241,0.93822448,621.67,621.28,0.766]
[1743210983441,0.93822448,621.66,621.28,0.766]
[1743210983846,0.93822448,621.65,621.28,0.766]
[1743210984049,0.93822448,621.64,621.28,0.766]
[1743210984548,0.32135225,622.37,621.28,0.766]
[1743210984750,1.2229007,622.36,621.28,0.766]
[1743210984940,1.54426327,622.35,621.28,0.766]
[1743210985141,1.54426844,622.34,621.28,0.766]
[1743210985342,1.5442736,622.33,621.28,0.766]
[1743210985540,1.54427876,622.32,621.28,0.766]
[1743210985746,1.2229007,622.31,621.28,0.766]
[1743210985947,1.2229007,622.3,621.28,0.766]
[1743210986244,1.2229007,622.29,621.28,0.766]
[1743210986442,1.2229007,622.28,621.28,0.766]
[1743210986646,0.32137806,622.32,621.28,0.766]
[1743210986647,2.16156254,622.27,621.28,0.766]
[1743210986842,1.2229007,622.26,621.28,0.766]
[1743210987050,1.2229007,622.25,621.28,0.766]
[1743210987248,1.2229007,622.24,621.28,0.766]
[1743210987450,1.2229007,622.23,621.28,0.766]
[1743210987750,2.16156254,622.22,621.28,0.766]
[1743210987950,1.2229007,622.21,621.28,0.766]
[1743210988151,1.2229007,622.2,621.28,0.766]
[1743210988448,2.16156254,622.19,621.28,0.766]
[1743210988646,1.2229007,622.18,621.28,0.766]
[1743210988849,1.2229007,622.17,621.28,0.766]
[1743210989052,1.2229007,622.16,621.28,0.766]
[1743210989245,1.2229007,622.15,621.28,0.766]
[1743210989448,1.2229007,622.14,621.28,0.766]
[1743210989745,2.16156254,622.13,621.28,0.766]
[1743210989951,1.2229007,622.12,621.28,0.766]
[1743210990152,1.2229007,622.11,621.28,0.766]
[1743210990353,1.2229007,622.1,621.28,0.766]
[1743210990553,1.2229007,622.09,621.28,0.766]
[1743210990753,1.2229007,622.08,621.28,0.766]
[1743210990947,1.2229007,622.07,621.28,0.766]
[1743210991149,1.2229007,622.06,621.28,0.766]
[1743210991451,1.2229007,622.05,621.28,0.766]
[1743210991652,1.2229007,622.04,621.28,0.766]
[1743210991848,1.2229007,622.03,621.28,0.766]
[1743210992156,1.2229007,622.02,621.28,0.766]
[1743210992356,1.2229007,622.01,621.28,0.766]
[1743210992555,1.2229007,622.0,621.28,0.766]
[1743210992757,1.2229007,621.99,621.28,0.766]
[1743210992957,2.16156254,621.98,621.28,0.766]
[1743210993157,1.2229007,621.97,621.28,0.766]
[1743210993456,1.2229007,621.96,621.28,0.766]
[1743210993657,1.2229007,621.95,621.28,0.766]
[1743210993857,1.2229007,621.94,621.28,0.766]
[1743210994051,1.2229007,621.93,621.28,0.766]
[1743210994250,1.2229007,621.92,621.28,0.766]
[1743210994456,1.2229007,621.91,621.28,1.972]
[1743210994652,1.2229007,621.9,621.28,1.972]
[1743210994853,1.2229007,621.89,621.28,1.972]
[1743210995058,1.2229007,621.88,621.28,1.972]
[1743210995359,1.2229007,621.87,621.28,1.972]
[1743210995558,1.2229007,621.86,621.28,1.972]
[1743210995858,1.2229007,621.85,621.28,1.972]
[1743210996158,2.16156254,621.84,621.28,1.972]
[1743210996354,1.2229007,621.83,621.28,1.972]
[1743210996552,0.32137806,622.32,621.28,1.972]
[1743210996553,2.16156254,621.82,621.28,1.972]
[1743210996856,1.2229007,621.81,621.28,1.972]
[1743210997159,0.93866184,621.8,621.28,1.972]
[1743210997359,1.22262375,621.79,621.28,1.972]
[1743210997556,1.22262375,621.78,621.28,1.972]
[1743210997858,2.16128559,621.77,621.28,1.972]
[1743210998051,1.22262375,621.76,621.28,1.972]
[1743210998253,1.22262375,621.75,621.28,1.972]
[1743210998456,1.22262375,621.74,621.28,1.972]